Workbook

Sheet T (hidden)
A1: Tipo de vehículo | C1: Pregunta | F1: Adquisicion | H1: Editar
A2: Autocar de 15 metros | B2: T17 | C2: Si | D2: S | F2: COMPRA
A3: Autocar de 12 metros | B3: T18 | C3: No | D3: N | F3: ALQUILER, LEASING…
A4: Autocar de 9 metros | B4: T19
A5: Microbús | B5: T20
A6: Autocar genérico (autocares no englobados en las categorías anteriores) | B6: T21

Sheet DE (hidden)
C1: T17A | D1: T17 | E1: T18A | F1: T18 | G1: T19A | H1: T19 | I1: T20A | J1: T20 | K1: T21A | L1: T21
B2: Descripción: | D2: Autocar de 15 metros | F2: Autocar de 12 metros | H2: Autocar de 9 metros | J2: Microbús | L2: Autocar genérico (autocares no englobados en las categorías anteriores) | AJ2: 03/07/2025
B3: Tipo interes | D3: 0.0453 | F3: 0.0453 | H3: 0.0453 | J3: 0.0453 | L3: 0.0453
B4: Número de plazas incluido el conductor | D4: 65 | F4: 55 | H4: 35 | J4: 25 | L4: 55
B5: Potencia (CV) | D5: 420 | F5: 380 | H5: 280 | J5: 160 | L5: 380
B6: Masa Máxima Autorizada (kg) | D6: 0 | F6: 0 | H6: 0 | J6: 0 | L6: 0
B7: Número de ejes | D7: 3 | F7: 2 | H7: 2 | J7: 2 | L7: 2
B8: Kilómetros recorridos anualmente | D8: 75000 | F8: 65000 | H8: 50000 | J8: 40000 | L8: 65000
B9: Kilómetros facturados de los recorridos al año (km) | C9: 95 | D9: =ROUND(D8*C9/100,2) -> 71250 | E9: 95 | F9: =F8*E9/100 -> 61750 | G9: 95 | H9: =H8*G9/100 -> 47500 | I9: 95 | J9: =J8*I9/100 -> 38000 | K9: 95 | L9: =L8*K9/100 -> 61750
B10: Consumo medio (litros/100km) | D10: 30 | F10: 26 | H10: 21 | J10: 15.5 | L10: 26
B11: Horas trabajadas al año | D11: 1800 | F11: 1800 | H11: 1800 | J11: 1800 | L11: 1800
B12: Horas facturadas de las trabajadas al año (h,%) | C12: 91 | D12: =ROUND(D11*C12/100,0) -> 1638 | E12: 91 | F12: =F11*E12/100 -> 1638 | G12: 91 | H12: =H11*G12/100 -> 1638 | I12: 91 | J12: =J11*I12/100 -> 1638 | K12: 91 | L12: =L11*K12/100 -> 1638
B13: Kilómetros con viajeros de los recorridos al año (km,%) | C13: 90 | D13: =ROUND(D8*C13/100,2) -> 67500 | E13: 90 | F13: =F8*E13/100 -> 58500 | G13: 90 | H13: =H8*G13/100 -> 45000 | I13: 90 | J13: =J8*I13/100 -> 36000 | K13: 90 | L13: =L8*K13/100 -> 58500
B14: Ocupación media de las plazas en los kilómetros recorridos con viajeros (viajeros/autocar,%) | C14: 80 | D14: =ROUND((D4-1)*C14/100,0) -> 51 | E14: 80 | F14: =ROUND((F4-1)*E14/100,0) -> 43 | G14: 80 | H14: =ROUND((H4-1)*G14/100,0) -> 27 | I14: 80 | J14: =ROUND((J4-1)*I14/100,0) -> 19 | K14: 80 | L14: =ROUND((L4-1)*K14/100,0) -> 43
B15: Producción anual: Viajeros x Kilómetros | D15: =D13*D14 -> 3442500 | F15: =F13*F14 -> 2515500 | H15: =H13*H14 -> 1215000 | J15: =J13*J14 -> 684000 | L15: =L13*L14 -> 2515500
B16: Pago de alquiler o leasing anual (€) | D16: 0 | F16: 0 | H16: 0 | J16: 0 | L16: 0 | M16: CHASIS
B17: Precio de adquisición (precio de tarifa - descuento) sin IVA (€) | D17: 131408.55 | F17: 116029.69 | H17: 78861.75 | J17: 40274 | L17: 116029.69
B18: Vida útil (años) | D18: 12 | F18: 12 | H18: 12 | J18: 12 | L18: 12
B19: Valor residual sin IVA (€) | C19: 20 | D19: =ROUND(D17*C19/100,0) -> 26282 | E19: 20 | F19: =ROUND(F17*E19/100,0) -> 23206 | G19: 20 | H19: =ROUND(H17*G19/100,0) -> 15772 | I19: 20 | J19: =ROUND(J17*I19/100,0) -> 8055 | K19: 20 | L19: =ROUND(L17*K19/100,0) -> 23206
B20: AMORTIZACION DEL CHASIS | D20: =IFERROR(ROUND((D17-D19-D80)/D18,0),0) -> 8246 | F20: =IFERROR(ROUND((F17-F19-F80)/F18,0),0) -> 7451 | H20: =IFERROR(ROUND((H17-H19-H80)/H18,0),0) -> 5069 | J20: =IFERROR(ROUND((J17-J19-J80)/J18,0),0) -> 2562 | L20: =IFERROR(ROUND((L17-L19-L80)/L18,0),0) -> 7451
B21: GASTOS FINANCIEROS DEL CHASIS | D21: =IFERROR(ROUND(IF(D17=0,0,(D17-D19-D80)*(D$3/(1-POWER(1+D$3,-D18))-1/D18)),0),0) -> 2624.28 | F21: =IFERROR(ROUND(IF(F17=0,0,(F17-F19-F80)*(F$3/(1-POWER(1+F$3,-F18))-1/F18)),0),0) -> 2371.33 | H21: =IFERROR(ROUND(IF(H17=0,0,(H17-H19-H80)*(H$3/(1-POWER(1+H$3,-H18))-1/H18)),0),0) -> 1613.19 | J21: =IFERROR(ROUND(IF(J17=0,0,(J17-J19-J80)*(J$3/(1-POWER(1+J$3,-J18))-1/J18)),0),0) -> 815.24 | L21: =IFERROR(ROUND(IF(L17=0,0,(L17-L19-L80)*(L$3/(1-POWER(1+L$3,-L18))-1/L18)),0),0) -> 2371.33
B22: Pago de alquiler o leasing anual (€) | D22: 0 | F22: 0 | H22: 0 | J22: 0 | L22: 0 | M22: CARROZADO
B23: Precio de adquisición (precio de tarifa - descuento) sin IVA (€) | D23: 131408.55 | F23: 116029.69 | H23: 78861.75 | J23: 40274 | L23: 116029.69
B24: Vida útil (años) | D24: 12 | F24: 12 | H24: 12 | J24: 12 | L24: 12
B25: Valor residual sin IVA (€) | C25: 20 | D25: =ROUND(D23*C25/100,0) -> 26282 | E25: 20 | F25: =ROUND(F23*E25/100,0) -> 23206 | G25: 20 | H25: =ROUND(H23*G25/100,0) -> 15772 | I25: 20 | J25: =ROUND(J23*I25/100,0) -> 8055 | K25: 20 | L25: =ROUND(L23*K25/100,0) -> 23206
B26: AMORTIZACION CARROZADO | D26: =IFERROR(ROUND((D23-D25)/D24,0),0) -> 8761 | F26: =IFERROR(ROUND((F23-F25)/F24,0),0) -> 7735 | H26: =IFERROR(ROUND((H23-H25)/H24,0),0) -> 5257 | J26: =IFERROR(ROUND((J23-J25)/J24,0),0) -> 2685 | L26: =IFERROR(ROUND((L23-L25)/L24,0),0) -> 7735
B27: GASTOS FINANCIEROS CARROZADO | D27: =IFERROR(ROUND(IF(D17=0,0,(D23-D25)*(D$3/(1-POWER(1+D$3,-D24))-1/D24)),0),0) -> 2788.08 | F27: =IFERROR(ROUND(IF(F17=0,0,(F23-F25)*(F$3/(1-POWER(1+F$3,-F24))-1/F24)),0),0) -> 2461.79 | H27: =IFERROR(ROUND(IF(H17=0,0,(H23-H25)*(H$3/(1-POWER(1+H$3,-H24))-1/H24)),0),0) -> 1673.21 | J27: =IFERROR(ROUND(IF(J17=0,0,(J23-J25)*(J$3/(1-POWER(1+J$3,-J24))-1/J24)),0),0) -> 854.48 | L27: =IFERROR(ROUND(IF(L17=0,0,(L23-L25)*(L$3/(1-POWER(1+L$3,-L24))-1/L24)),0),0) -> 2461.79
B28: Pago de alquiler o leasing anual (€) | D28: 0 | F28: 0 | H28: 0 | J28: 0 | L28: 0 | M28: EQUIPOS
B29: Precio de adquisición (precio de tarifa - descuento) sin IVA (€) | D29: 0 | F29: 0 | H29: 0 | J29: 0 | L29: 0
B30: Vida útil (años) | D30: 0 | F30: 0 | H30: 0 | J30: 0 | L30: 0
B31: Valor residual sin IVA (€) | C31: 0 | D31: =ROUND(D29*C31/100,0) -> 0 | E31: 0 | F31: =ROUND(F29*E31/100,0) -> 0 | G31: 0 | H31: =ROUND(H29*G31/100,0) -> 0 | I31: 0 | J31: =ROUND(J29*I31/100,0) -> 0 | K31: 0 | L31: =ROUND(L29*K31/100,0) -> 0
B32: AMORTIZACION EQUIPOS | D32: =IFERROR(ROUND((D29-D31)/D30,0),0) -> 0 | F32: =IFERROR(ROUND((F29-F31)/F30,0),0) -> 0 | H32: =IFERROR(ROUND((H29-H31)/H30,0),0) -> 0 | J32: =IFERROR(ROUND((J29-J31)/J30,0),0) -> 0 | L32: =IFERROR(ROUND((L29-L31)/L30,0),0) -> 0
B33: GASTOS FINANCIEROS EQUIPOS | D33: =IFERROR(ROUND(IF(D17=0,0,(D29-D31)*(D$3/(1-POWER(1+D$3,-D30))-1/D30)),0),0) -> 0 | F33: =IFERROR(ROUND(IF(F17=0,0,(F29-F31)*(F$3/(1-POWER(1+F$3,-F30))-1/F30)),0),0) -> 0 | H33: =IFERROR(ROUND(IF(H17=0,0,(H29-H31)*(H$3/(1-POWER(1+H$3,-H30))-1/H30)),0),0) -> 0 | J33: =IFERROR(ROUND(IF(J17=0,0,(J29-J31)*(J$3/(1-POWER(1+J$3,-J30))-1/J30)),0),0) -> 0 | L33: =IFERROR(ROUND(IF(L17=0,0,(L29-L31)*(L$3/(1-POWER(1+L$3,-L30))-1/L30)),0),0) -> 0
B34: COSTES DE ADQUISICION | D34: =D16+D20+D21+D22+D26+D27+D28+D32+D33 -> 22419.36 | F34: =F16+F20+F21+F22+F26+F27+F28+F32+F33 -> 20019.12 | H34: =H16+H20+H21+H22+H26+H27+H28+H32+H33 -> 13612.4 | J34: =J16+J20+J21+J22+J26+J27+J28+J32+J33 -> 6916.72 | L34: =L16+L20+L21+L22+L26+L27+L28+L32+L33 -> 20019.12
B35: Coste total anual del personal de a bordo, incluidos costes de empresa (Seguridad Social y otros) (€) | D35: 36783.34 | F35: 36783.34 | H35: 36783.34 | J35: 36783.34 | L35: 36783.34
B36: Otros complementos retributivos del personal de a bordo (€) | D36: 0 | F36: 0 | H36: 0 | J36: 0 | L36: 0
B37: Dieta total diaria del personal de a bordo de transporte regular (€/día) | D37: 33.51 | F37: 33.51 | H37: 26.81 | J37: 26.81 | L37: 33.51
B38: Número de días de transporte regular con dieta al año | D38: 100 | F38: 100 | H38: 50 | J38: 25 | L38: 100
B39: Dieta total diaria internacional del personal de a bordo de transporte regular (€/día) | D39: 0 | F39: 0 | H39: 0 | J39: 0 | L39: 0
B40: Número de días de transporte regular con dieta internacional al año | D40: 0 | F40: 0 | H40: 0 | J40: 0 | L40: 0
B41: Dietas totales anuales por transporte regular (€) | D41: =D37*D38+D39*D40 -> 3351 | F41: =F37*F38+F39*F40 -> 3351 | H41: =H37*H38+H39*H40 -> 1340.5 | J41: =J37*J38+J39*J40 -> 670.25 | L41: =L37*L38+L39*L40 -> 3351
B42: Dieta total diaria del personal de a bordo de transporte discrecional (€/día) | D42: 33.51 | F42: 33.51 | H42: 26.81 | J42: 26.81 | L42: 33.51
B43: Número de días de transporte discrecional con dieta al año | D43: 100 | F43: 100 | H43: 50 | J43: 25 | L43: 100
B44: Dieta total diaria internacional del personal de a bordo de transporte discrecional (€/día) | D44: 0 | F44: 0 | H44: 0 | J44: 0 | L44: 0
B45: Número de días de transporte discrecional con dieta internacional al año | D45: 0 | F45: 0 | H45: 0 | J45: 0 | L45: 0
B46: Dietas totales anuales por transporte discrecional (€) | D46: =D42*D43+D44*D45 -> 3351 | F46: =F42*F43+F44*F45 -> 3351 | H46: =H42*H43+H44*H45 -> 1340.5 | J46: =J42*J43+J44*J45 -> 670.25 | L46: =L42*L43+L44*L45 -> 3351
B47: COSTES DE PERSONAL | D47: =D35+D41+D46 -> 43485.34 | F47: =F35+F41+F46 -> 43485.34 | H47: =H35+H41+H46 -> 39464.34 | J47: =J35+J41+J46 -> 38123.84 | L47: =L35+L41+L46 -> 43485.34
B48: Seguro obligatorio del autocar (€) | D48: 0 | F48: 0 | H48: 0 | J48: 0 | L48: 0
B49: Responsabilidad civil (€) | D49: 0 | F49: 0 | H49: 0 | J49: 0 | L49: 0
B50: Seguro obligatorio de viajeros (€) | D50: 0 | F50: 0 | H50: 0 | J50: 0 | L50: 0
B51: Seguro de accidentes del conductor (€) | D51: 0 | F51: 0 | H51: 0 | J51: 0 | L51: 0
B52: Defensa y reclamación de daños (€) | D52: 0 | F52: 0 | H52: 0 | J52: 0 | L52: 0
B53: Seguro de incendios (€) | D53: 0 | F53: 0 | H53: 0 | J53: 0 | L53: 0
B54: Otros seguros (€) | D54: 0 | F54: 0 | H54: 0 | J54: 0 | L54: 0
B55: TOTAL SEGUROS (€) | D55: 3365.4 | F55: 2862.53 | H55: 2359.54 | J55: 2021.81 | L55: 2862.53
B56: COSTE TOTAL ANUAL DE LOS SEGUROS (€) | D56: =D55 -> 3365.4 | F56: =F55 -> 2862.53 | H56: =H55 -> 2359.54 | J56: =J55 -> 2021.81 | L56: =L55 -> 2862.53
B57: Visados | D57: 0 | F57: 0 | H57: 0 | J57: 0 | L57: 0
B58: Inspección técnica de vehículos (I.T.V.) (€) | D58: 0 | F58: 0 | H58: 0 | J58: 0 | L58: 0
B59: Impuesto de actividades económicas (I.A.E.) repercutible a este vehículo (€) | D59: 0 | F59: 0 | H59: 0 | J59: 0 | L59: 0
B60: Impuesto de Vehículos de Tracción Mecánica (I.T.V.M.) (€) | D60: 0 | F60: 0 | H60: 0 | J60: 0 | L60: 0
B61: Revisión tacógrafo (€) | D61: 0 | F61: 0 | H61: 0 | J61: 0 | L61: 0
B62: Otros costes fiscales (€) | D62: 0 | F62: 0 | H62: 0 | J62: 0 | L62: 0
B63: TOTAL COSTES FISCALES (€) | D63: 1227.74 | F63: 1164.32 | H63: 980.04 | J63: 744.3 | L63: 1164.32
B64: COSTE FISCAL TOTAL ANUAL | D64: =D63 -> 1227.74 | F64: =F63 -> 1164.32 | H64: =H63 -> 980.04 | J64: =J63 -> 744.3 | L64: =L63 -> 1164.32
B65: SEGUROS Y COSTES FISCALES | D65: =D56+D64 -> 4593.14 | F65: =F56+F64 -> 4026.85 | H65: =H56+H64 -> 3339.58 | J65: =J56+J64 -> 2766.11 | L65: =L56+L64 -> 4026.85
B66: Precio del carburante, con IVA (€/litro) | D66: 1.4363 | F66: 1.4363 | H66: 1.4363 | J66: 1.4363 | L66: 1.4363
B67: Descuento (€/litro) | D67: 0.1179 | F67: 0.1179 | H67: 0.1179 | J67: 0.1179 | L67: 0.1179
B68: IVA aplicado al carburante (€/litro) | C68: 21 | D68: =ROUND((C68/100)*(D66-D67)/(1+C68/100),4) -> 0.2288 | E68: 21 | F68: =ROUND((E68/100)*(F66-F67)/(1+E68/100),4) -> 0.2288 | G68: 21 | H68: =ROUND((G68/100)*(H66-H67)/(1+G68/100),4) -> 0.2288 | I68: 21 | J68: =ROUND((I68/100)*(J66-J67)/(1+I68/100),4) -> 0.2288 | K68: 21 | L68: =ROUND((K68/100)*(L66-L67)/(1+K68/100),4) -> 0.2288
B69: Precio carburante sin IVA (€/litro) | D69: =ROUND((D66-D67)/(1+C68/100),4) -> 1.0896 | F69: =ROUND((F66-F67)/(1+E68/100),4) -> 1.0896 | H69: =ROUND((H66-H67)/(1+G68/100),4) -> 1.0896 | J69: =ROUND((J66-J67)/(1+I68/100),4) -> 1.0896 | L69: =ROUND((L66-L67)/(1+K68/100),4) -> 1.0896
B70: GASTO TOTAL ANUAL EN CARBURANTE, SIN IVA (€) | D70: =ROUND(D8/100*D10*D69,0) -> 24516 | F70: =ROUND(F8/100*F10*F69,0) -> 18414 | H70: =ROUND(H8/100*H10*H69,0) -> 11441 | J70: =ROUND(J8/100*J10*J69,0) -> 6756 | L70: =ROUND(L8/100*L10*L69,0) -> 18414
B71: Número de neumáticos direccionables | D71: 4 | F71: 2 | H71: 2 | J71: 2 | L71: 2
B72: Número de neumáticos motrices | D72: 4 | F72: 4 | H72: 4 | J72: 4 | L72: 4
B73: Número de neumáticos arrastre | D73: 0 | F73: 0 | H73: 0 | J73: 0 | L73: 0
B74: Precio sin IVA de un neumático direccionable (€) | D74: 720.56 | F74: 612.24 | H74: 528.06 | J74: 431.54 | L74: 612.24
B75: Precio sin IVA de un neumático motriz (€) | D75: 720.56 | F75: 612.24 | H75: 528.06 | J75: 431.54 | L75: 612.24
B76: Precio sin IVA de un neumático arrastre (€) | D76: 726.56 | F76: 612.24 | H76: 528.06 | J76: 431.54 | L76: 612.24
B77: Duración media de un neumático direccionable (km) | D77: 70000 | F77: 70000 | H77: 70000 | J77: 70000 | L77: 70000
B78: Duración media de un neumático motriz (km) | D78: 70000 | F78: 70000 | H78: 70000 | J78: 70000 | L78: 70000
B79: Duración media de un neumático arrastre (km) | D79: 70000 | F79: 70000 | H79: 70000 | J79: 70000 | L79: 70000
B80: GASTO TOTAL ANUAL EN NEUMATICOS, SIN IVA (€) | D80: =ROUND(IFERROR(D71*D74*D$8/D77,0)+IFERROR(D72*D75*D$8/D78,0)+IFERROR(D73*D76*D$8/D79,0),0) -> 6176.23 | F80: =ROUND(IFERROR(F71*F74*F$8/F77,0)+IFERROR(F72*F75*F$8/F78,0)+IFERROR(F73*F76*F$8/F79,0),0) -> 3411.05 | H80: =ROUND(IFERROR(H71*H74*H$8/H77,0)+IFERROR(H72*H75*H$8/H78,0)+IFERROR(H73*H76*H$8/H79,0),0) -> 2263.11 | J80: =ROUND(IFERROR(J71*J74*J$8/J77,0)+IFERROR(J72*J75*J$8/J78,0)+IFERROR(J73*J76*J$8/J79,0),0) -> 1479.57 | L80: =ROUND(IFERROR(L71*L74*L$8/L77,0)+IFERROR(L72*L75*L$8/L78,0)+IFERROR(L73*L76*L$8/L79,0),0) -> 3411.05
B81: Coste de mantenimento y reparaciones por km, sin IVA (€/km) | D81: 0.1717 | F81: 0.1632 | H81: 0.1192 | J81: 0.0731 | L81: 0.1632
B82: GASTO ANUAL EN MANTENIMIENTO Y REPARACIONES, SIN IVA (€) | D82: =ROUND(D81*D8,2) -> 12877.5 | F82: =ROUND(F81*F8,2) -> 10608 | H82: =ROUND(H81*H8,2) -> 5960 | J82: =ROUND(J81*J8,2) -> 2924 | L82: =ROUND(L81*L8,2) -> 10608
B83: GASTO ANUAL EN PEAJES, SIN IVA (€) | D83: 0 | F83: 0 | H83: 0 | J83: 0 | L83: 0
B84: COSTES VARIABLES | D84: =ROUND(D70+D80+D82+D83+D89,2) -> 44384.85 | F84: =ROUND(F70+F80+F82+F83+F89,2) -> 33045.29 | H84: =ROUND(H70+H80+H82+H83+H89,2) -> 20044.5 | J84: =ROUND(J70+J80+J82+J83+J89,2) -> 11384.18 | L84: =ROUND(L70+L80+L82+L83+L89,2) -> 33045.29
B85: COSTES DIRECTOS | D85: =ROUND(D34+D47+D65+D84,2) -> 114882.69 | F85: =ROUND(F34+F47+F65+F84,2) -> 100576.6 | H85: =ROUND(H34+H47+H65+H84,2) -> 76460.82 | J85: =ROUND(J34+J47+J65+J84,2) -> 59190.85 | L85: =ROUND(L34+L47+L65+L84,2) -> 100576.6
B86: % Costes variables de gestión, administración y comercialización | C86: 12.5 | D86: =ROUND((D34+D47+D65+D84)*(C86/100),0) -> 14360.34 | E86: 12.5 | F86: =ROUND((F34+F47+F65+F84)*(E86/100),0) -> 12572.08 | G86: 12.5 | H86: =ROUND((H34+H47+H65+H84)*(G86/100),0) -> 9557.6 | I86: 12.5 | J86: =ROUND((J34+J47+J65+J84)*(I86/100),0) -> 7398.86 | K86: 12.5 | L86: =ROUND((L34+L47+L65+L84)*(K86/100),0) -> 12572.08
B87: COSTES INDIRECTOS | D87: =ROUND((D34+D47+D65+D84)*(C86/100),0) -> 14360.34 | F87: =ROUND((F34+F47+F65+F84)*(E86/100),0) -> 12572.08 | H87: =ROUND((H34+H47+H65+H84)*(G86/100),0) -> 9557.6 | J87: =ROUND((J34+J47+J65+J84)*(I86/100),0) -> 7398.86 | L87: =ROUND((L34+L47+L65+L84)*(K86/100),0) -> 12572.08
B88: COSTES TOTALES | D88: =ROUND(D85+D87,0) -> 129243.03 | F88: =ROUND(F85+F87,0) -> 113148.68 | H88: =ROUND(H85+H87,0) -> 86018.42 | J88: =ROUND(J85+J87,0) -> 66589.71 | L88: =ROUND(L85+L87,0) -> 113148.68
B89: GASTO ANUAL POR CONSUMO DE DISOLUCION DE UREA (€, sin IVA) | D89: 815.12 | F89: 612.24 | H89: 380.39 | J89: 224.61 | L89: 612.24
B90: Coste anual por disolucion de urea por kilometro(€/km, sin IVA) | D90: 0.0109 | F90: 0.0094 | H90: 0.0076 | J90: 0.0056 | L90: 0.0094

Sheet Tipo Vehículo
C6: 1. Seleccionar tipo de vehículo
C10: Tipo de vehículo: | E10: =VLOOKUP(F10,T!A2:B17,2,0) -> T17 | F10: Autocar de 15 metros
C13: ¿Desea cargar los datos estadísticos en los campos a rellenar? | G13: No
C16: ¿Desea comenzar la simulación con los datos estadísticos añadidos a los formularios de cálculo?

Sheet Características Vehículo
C6: 1. Características del vehículo
C9: Características técnicas del vehículo | L9: Datos estadísticos | M9: =DE!$AJ$2 -> 19/06/2025
C11: Descripción: | J11: =IF(HLOOKUP('Tipo Vehículo'!$E$10,DE!$C$1:$AK$15,2,0)="","",HLOOKUP('Tipo Vehículo'!$E$10,DE!$C$1:$AK$15,2,0)) -> Autocar de 15 metros
C13: Número de plazas incluido el conductor | L13: =IF(HLOOKUP('Tipo Vehículo'!$E$10,DE!$C$1:$X$15,4,0)="","",HLOOKUP('Tipo Vehículo'!$E$10,DE!$C$1:$X$15,4,0)) -> 15
C15: Potencia (CV) | L15: =IF(HLOOKUP('Tipo Vehículo'!$E$10,DE!$C$1:$X$15,5,0)="","",HLOOKUP('Tipo Vehículo'!$E$10,DE!$C$1:$X$15,5,0)) -> 15
C17: MMA ( Tm) | L17: =IF(HLOOKUP('Tipo Vehículo'!$E$10,DE!$C$1:$X$15,6,0)="","",HLOOKUP('Tipo Vehículo'!$E$10,DE!$C$1:$X$15,6,0)) -> 0
C19: Número de ejes | L19: =IF(HLOOKUP('Tipo Vehículo'!$E$10,DE!$C$1:$X$15,7,0)="","",HLOOKUP('Tipo Vehículo'!$E$10,DE!$C$1:$X$15,7,0)) -> 4
C21: Características de explotación del vehículo | L21: Datos estadísticos | M21: =DE!$AJ$2 -> 19/06/2025
C23: Kilómetros recorridos anualmente (km) | L23: =IF(HLOOKUP('Tipo Vehículo'!$E$10,DE!$C$1:$X$15,8,0)="","",HLOOKUP('Tipo Vehículo'!$E$10,DE!$C$1:$X$15,8,0)) -> 75000
C25: Kilómetros facturados de los recorridos al año (km) | I25: % | J25: =ROUND(J23*H25/100,2) -> 0 | K25: =IF(HLOOKUP(CONCATENATE('Tipo Vehículo'!$E$10,"A"),DE!$C$1:$X$15,9,0)="","",HLOOKUP(CONCATENATE('Tipo Vehículo'!$E$10,"A"),DE!$C$1:$X$15,9,0)) -> 95 | L25: =IF(HLOOKUP('Tipo Vehículo'!$E$10,DE!$C$1:$X$15,9,0)="","",HLOOKUP('Tipo Vehículo'!$E$10,DE!$C$1:$X$15,9,0)) -> 71250
C27: Consumo medio (litros/100km) | L27: =IF(HLOOKUP('Tipo Vehículo'!$E$10,DE!$C$1:$X$15,10,0)="","",HLOOKUP('Tipo Vehículo'!$E$10,DE!$C$1:$X$15,10,0)) -> 30
C29: Horas trabajadas al año | L29: =IF(HLOOKUP('Tipo Vehículo'!$E$10,DE!$C$1:$X$15,11,0)="","",HLOOKUP('Tipo Vehículo'!$E$10,DE!$C$1:$X$15,11,0)) -> 1800
C31: Horas facturadas de las trabajadas al año (h,%) | I31: % | J31: =ROUND(J29*H31/100,0) -> 0 | K31: =IF(HLOOKUP(CONCATENATE('Tipo Vehículo'!$E$10,"A"),DE!$C$1:$X$15,12,0)="","",HLOOKUP(CONCATENATE('Tipo Vehículo'!$E$10,"A"),DE!$C$1:$X$15,12,0)) -> 91 | L31: =IF(HLOOKUP('Tipo Vehículo'!$E$10,DE!$C$1:$X$15,12,0)="","",HLOOKUP('Tipo Vehículo'!$E$10,DE!$C$1:$X$15,12,0)) -> 1638
C33: Personas transportadas
C35: Kilómetros con personas de los recorridos al año (km,%) | I35: % | J35: =ROUND(J23*H35/100,2) -> 0 | K35: =IF(HLOOKUP(CONCATENATE('Tipo Vehículo'!$E$10,"A"),DE!$C$1:$X$15,13,0)="","",HLOOKUP(CONCATENATE('Tipo Vehículo'!$E$10,"A"),DE!$C$1:$X$15,13,0)) -> 90 | L35: =IF(HLOOKUP('Tipo Vehículo'!$E$10,DE!$C$1:$X$15,13,0)="","",HLOOKUP('Tipo Vehículo'!$E$10,DE!$C$1:$X$15,13,0)) -> 67500
C37: Ocupación media de las plazas en los kilómetros recorridos con personas (personas/autocar,%) | I37: % | J37: =ROUND((J13-1)*H37/100,0) -> 0 | K37: =IF(HLOOKUP(CONCATENATE('Tipo Vehículo'!$E$10,"A"),DE!$C$1:$X$15,14,0)="","",HLOOKUP(CONCATENATE('Tipo Vehículo'!$E$10,"A"),DE!$C$1:$X$15,14,0)) -> 80 | L37: =IF(HLOOKUP('Tipo Vehículo'!$E$10,DE!$C$1:$X$15,14,0)="","",HLOOKUP('Tipo Vehículo'!$E$10,DE!$C$1:$X$15,14,0)) -> 11
C39: Producción anual: Personas x Kilómetros | J39: =J35*J37 -> 0 | L39: =IF(HLOOKUP('Tipo Vehículo'!$E$10,DE!$C$1:$X$15,15,0)="","",HLOOKUP('Tipo Vehículo'!$E$10,DE!$C$1:$X$15,15,0)) -> 742500

Sheet Costes Adquisición
C6: 2. Costes de adquisición
C9: Chasis del autocar | L9: Datos estadísticos | M9: =DE!$AJ$2 -> 19/06/2025
L10: =IF(HLOOKUP('Tipo Vehículo'!$E$10,DE!$C$1:$AK$286,3,0)="","",HLOOKUP('Tipo Vehículo'!$E$10,DE!$C$1:$AK$286,3,0)) -> 0.0561
C11: Forma de adquisición: | J11: COMPRA
C13: Pago de alquiler o leasing anual (€) | L13: =IF(HLOOKUP('Tipo Vehículo'!$E$10,DE!$C$1:$AK$286,16,0)="","",HLOOKUP('Tipo Vehículo'!$E$10,DE!$C$1:$AK$286,16,0)) -> 0
C15: Compra del chasis (€)
C17: Precio de adquisición (precio de tarifa - descuento) sin IVA (€) | L17: =IF(HLOOKUP('Tipo Vehículo'!$E$10,DE!$C$1:$AK$286,17,0)="","",HLOOKUP('Tipo Vehículo'!$E$10,DE!$C$1:$AK$286,17,0)) -> 129466.55
C19: Vida útil (años) | L19: =IF(HLOOKUP('Tipo Vehículo'!$E$10,DE!$C$1:$AK$286,18,0)="","",HLOOKUP('Tipo Vehículo'!$E$10,DE!$C$1:$AK$286,18,0)) -> 12
C21: Valor residual sin IVA (€) | I21: % | J21: =IFERROR(ROUND(J$17*H21/100,0),0) -> 0 | K21: =IF(HLOOKUP(CONCATENATE('Tipo Vehículo'!$E$10,"A"),DE!$C$1:$X$186,19,0)="","",HLOOKUP(CONCATENATE('Tipo Vehículo'!$E$10,"A"),DE!$C$1:$X$186,19,0)) -> 20 | L21: =IF(HLOOKUP('Tipo Vehículo'!$E$10,DE!$C$1:$AK$286,19,0)="","",HLOOKUP('Tipo Vehículo'!$E$10,DE!$C$1:$AK$286,19,0)) -> 25893
C23: AMORTIZACION DEL CHASIS (€) | J23: =ROUND(IFERROR(IF(J11=T!F2,ROUND((J17-J21-('Costes Variables'!J$47))*(1/J19),2),0),0),0) -> 0 | L23: =IF(HLOOKUP('Tipo Vehículo'!$E$10,DE!$C$1:$AK$286,20,0)="","",HLOOKUP('Tipo Vehículo'!$E$10,DE!$C$1:$AK$286,20,0)) -> 8123
C25: GASTOS FINANCIEROS DEL CHASIS (€) | J25: =ROUND(IFERROR(IF(J11=T!F2,ROUND((J17-J21-('Costes Variables'!J$47))*(-(1/J19)+L$10/(1-POWER(1+L$10,-J19))),2),0),0),0) -> 0 | L25: =IF(HLOOKUP('Tipo Vehículo'!$E$10,DE!$C$1:$AK$286,21,0)="","",HLOOKUP('Tipo Vehículo'!$E$10,DE!$C$1:$AK$286,21,0)) -> 3256
C27: Carrozado del autocar | L27: Datos estadísticos | M27: =DE!$AJ$2 -> 19/06/2025
C29: Forma de adquisición: | J29: COMPRA
C31: Pago de alquiler o leasing anual (€) | L31: =IF(HLOOKUP('Tipo Vehículo'!$E$10,DE!$C$1:$AK$286,22,0)="","",HLOOKUP('Tipo Vehículo'!$E$10,DE!$C$1:$AK$286,22,0)) -> 0
C33: Compra carrozado (€)
C35: Precio de adquisición (precio de tarifa - descuento) sin IVA (€) | L35: =IF(HLOOKUP('Tipo Vehículo'!$E$10,DE!$C$1:$AK$286,23,0)="","",HLOOKUP('Tipo Vehículo'!$E$10,DE!$C$1:$AK$286,23,0)) -> 129466.55
C37: Vida útil (años) | L37: =IF(HLOOKUP('Tipo Vehículo'!$E$10,DE!$C$1:$AK$286,24,0)="","",HLOOKUP('Tipo Vehículo'!$E$10,DE!$C$1:$AK$286,24,0)) -> 12
C39: Valor residual sin IVA (€) | I39: % | J39: =IFERROR(ROUND(J35*H39/100,0),0) -> 0 | K39: =IF(HLOOKUP(CONCATENATE('Tipo Vehículo'!$E$10,"A"),DE!$C$1:$X$186,25,0)="","",HLOOKUP(CONCATENATE('Tipo Vehículo'!$E$10,"A"),DE!$C$1:$X$186,25,0)) -> 20 | L39: =IF(HLOOKUP('Tipo Vehículo'!$E$10,DE!$C$1:$AK$286,25,0)="","",HLOOKUP('Tipo Vehículo'!$E$10,DE!$C$1:$AK$286,25,0)) -> 25893
C41: AMORTIZACION CARROZADO (€) | J41: =IFERROR(IF(J29=T!F2,ROUND((J35-J39)*(1/J37),0),0),0) -> 0 | L41: =IF(HLOOKUP('Tipo Vehículo'!$E$10,DE!$C$1:$AK$286,26,0)="","",HLOOKUP('Tipo Vehículo'!$E$10,DE!$C$1:$AK$286,26,0)) -> 8631
C43: GASTOS FINANCIEROS CARROZADO (€) | J43: =IFERROR(IF(J29=T!F2,ROUND((J35-J39)*(-(1/J$19)+L$10/(1-POWER(1+L$10,-J37))),0),0),0) -> 0 | L43: =IF(HLOOKUP('Tipo Vehículo'!$E$10,DE!$C$1:$AK$286,27,0)="","",HLOOKUP('Tipo Vehículo'!$E$10,DE!$C$1:$AK$286,27,0)) -> 3460
C45: Equipos auxiliares | L45: Datos estadísticos | M45: =DE!$AJ$2 -> 19/06/2025
C47: Forma de adquisición: | J47: COMPRA
C49: Pago de alquiler o leasing anual (€) | L49: =IF(HLOOKUP('Tipo Vehículo'!$E$10,DE!$C$1:$AK$286,28,0)="","",HLOOKUP('Tipo Vehículo'!$E$10,DE!$C$1:$AK$286,28,0)) -> 0
C51: Compra de equipos auxiliares amortizables (€)
C53: Precio de adquisición (precio de tarifa - descuento) sin IVA (€) | L53: =IF(HLOOKUP('Tipo Vehículo'!$E$10,DE!$C$1:$AK$286,29,0)="","",HLOOKUP('Tipo Vehículo'!$E$10,DE!$C$1:$AK$286,29,0)) -> 0
C55: Vida útil (años) | L55: =IF(HLOOKUP('Tipo Vehículo'!$E$10,DE!$C$1:$AK$286,30,0)="","",HLOOKUP('Tipo Vehículo'!$E$10,DE!$C$1:$AK$286,30,0)) -> 0
C57: Valor residual sin IVA (€) | I57: % | J57: =IFERROR(ROUND(J53*H57/100,0),0) -> 0 | K57: =IF(HLOOKUP(CONCATENATE('Tipo Vehículo'!$E$10,"A"),DE!$C$1:$X$186,31,0)="","",HLOOKUP(CONCATENATE('Tipo Vehículo'!$E$10,"A"),DE!$C$1:$X$186,31,0)) -> 0 | L57: =IF(HLOOKUP('Tipo Vehículo'!$E$10,DE!$C$1:$AK$286,31,0)="","",HLOOKUP('Tipo Vehículo'!$E$10,DE!$C$1:$AK$286,31,0)) -> 0
C59: AMORTIZACION EQUIPOS (€) | J59: =IFERROR(IF(J47=T!F2,ROUND((J53-J57)*(1/J55),0),0),0) -> 0 | L59: =IF(HLOOKUP('Tipo Vehículo'!$E$10,DE!$C$1:$AK$286,32,0)="","",HLOOKUP('Tipo Vehículo'!$E$10,DE!$C$1:$AK$286,32,0)) -> 0
C61: GASTOS FINANCIEROS EQUIPOS (€) | J61: =IFERROR(IF(J47=T!F2,ROUND((J53-J57)*(-(1/J$19)+L$10/(1-POWER(1+L$10,-J55))),0),0),0) -> 0 | L61: =IF(HLOOKUP('Tipo Vehículo'!$E$10,DE!$C$1:$AK$286,33,0)="","",HLOOKUP('Tipo Vehículo'!$E$10,DE!$C$1:$AK$286,33,0)) -> 0
C63: COSTES DE ADQUISICION (€) | J63: =IFERROR(IF(J11=T!F2,J23+J25,J13)+IF(J29=T!F2,J41+J43,J31)+IF(J47=T!F2,J59+J61,J49),0) -> 0 | L63: =IF(HLOOKUP('Tipo Vehículo'!$E$10,DE!$C$1:$AK$286,34,0)="","",HLOOKUP('Tipo Vehículo'!$E$10,DE!$C$1:$AK$286,34,0)) -> 23470

Sheet Costes Personal
C6: 3. Costes de personal de a bordo
C9: COSTES DE PERSONAL DE A BORDO | J9: Datos estadísticos | K9: =DE!$AJ$2 -> 19/06/2025
C11: Coste total anual del personal de a bordo, incluidos costes de empresa (Seguridad Social y otros) (€) | J11: =IF(HLOOKUP('Tipo Vehículo'!$E$10,DE!$C$1:$X$285,35,0)="","",HLOOKUP('Tipo Vehículo'!$E$10,DE!$C$1:$X$285,35,0)) -> 34931.95
C13: Otros complementos retributivos del personal de a bordo (€) | J13: =IF(HLOOKUP('Tipo Vehículo'!$E$10,DE!$C$1:$X$285,36,0)="","",HLOOKUP('Tipo Vehículo'!$E$10,DE!$C$1:$X$285,36,0)) -> 0
C15: SERVICIOS DE TRANSPORTE REGULARES
C17: Dieta total diaria del personal de a bordo de transporte regular (€/día) | J17: =IF(HLOOKUP('Tipo Vehículo'!$E$10,DE!$C$1:$X$285,37,0)="","",HLOOKUP('Tipo Vehículo'!$E$10,DE!$C$1:$X$285,37,0)) -> 31.82
C19: Número de días de transporte regular con dieta al año | J19: =IF(HLOOKUP('Tipo Vehículo'!$E$10,DE!$C$1:$X$285,38,0)="","",HLOOKUP('Tipo Vehículo'!$E$10,DE!$C$1:$X$285,38,0)) -> 100
C21: Dieta total diaria internacional del personal de a bordo de transporte regular (€/día) | J21: =IF(HLOOKUP('Tipo Vehículo'!$E$10,DE!$C$1:$X$285,39,0)="","",HLOOKUP('Tipo Vehículo'!$E$10,DE!$C$1:$X$285,39,0)) -> 0
C23: Número de días de transporte regular con dieta internacional al año | J23: =IF(HLOOKUP('Tipo Vehículo'!$E$10,DE!$C$1:$X$285,40,0)="","",HLOOKUP('Tipo Vehículo'!$E$10,DE!$C$1:$X$285,40,0)) -> 0
C25: Dietas totales anuales por transporte regular (€) | H25: =IFERROR((H17*H19)+(H21*H23),0) -> 0 | J25: =IF(HLOOKUP('Tipo Vehículo'!$E$10,DE!$C$1:$X$285,41,0)="","",HLOOKUP('Tipo Vehículo'!$E$10,DE!$C$1:$X$285,41,0)) -> 3182
C27: SERVICIOS DE TRANSPORTE DISCRECIONAL
C29: Dieta total diaria del personal de a bordo de transporte discrecional (€/día) | J29: =IF(HLOOKUP('Tipo Vehículo'!$E$10,DE!$C$1:$X$285,42,0)="","",HLOOKUP('Tipo Vehículo'!$E$10,DE!$C$1:$X$285,42,0)) -> 31.82
C31: Número de días de transporte discrecional con dieta al año | J31: =IF(HLOOKUP('Tipo Vehículo'!$E$10,DE!$C$1:$X$285,43,0)="","",HLOOKUP('Tipo Vehículo'!$E$10,DE!$C$1:$X$285,43,0)) -> 100
C33: Dieta total diaria internacional del personal de a bordo de transporte discrecional (€/día) | J33: =IF(HLOOKUP('Tipo Vehículo'!$E$10,DE!$C$1:$X$285,44,0)="","",HLOOKUP('Tipo Vehículo'!$E$10,DE!$C$1:$X$285,44,0)) -> 0
C35: Número de días de transporte discrecional con dieta internacional al año | J35: =IF(HLOOKUP('Tipo Vehículo'!$E$10,DE!$C$1:$X$285,45,0)="","",HLOOKUP('Tipo Vehículo'!$E$10,DE!$C$1:$X$285,45,0)) -> 0
C37: Dietas totales anuales por transporte discrecional (€) | H37: =IFERROR((H29*H31)+(H33*H35),0) -> 0 | J37: =IF(HLOOKUP('Tipo Vehículo'!$E$10,DE!$C$1:$X$285,46,0)="","",HLOOKUP('Tipo Vehículo'!$E$10,DE!$C$1:$X$285,46,0)) -> 3182
C39: COSTES DE PERSONAL (€) | H39: =IFERROR(H11+H13+H25+H37,0) -> 0 | J39: =IF(HLOOKUP('Tipo Vehículo'!$E$10,DE!$C$1:$X$285,47,0)="","",HLOOKUP('Tipo Vehículo'!$E$10,DE!$C$1:$X$285,47,0)) -> 41295.95

Sheet Seguros y Costes Fiscales
C6: 4. Seguros y costes fiscales
C9: SEGUROS | J9: Datos estadísticos | K9: =DE!$AJ$2 -> 19/06/2025
C11: Seguro obligatorio del autocar (€) | J11: =IF(HLOOKUP('Tipo Vehículo'!$E$10,DE!$C$1:$X$285,48,0)="","",HLOOKUP('Tipo Vehículo'!$E$10,DE!$C$1:$X$285,48,0)) -> 0
C13: Responsabilidad civil (€) | J13: =IF(HLOOKUP('Tipo Vehículo'!$E$10,DE!$C$1:$X$285,49,0)="","",HLOOKUP('Tipo Vehículo'!$E$10,DE!$C$1:$X$285,49,0)) -> 0
C15: Seguro obligatorio de personas (€) | J15: =IF(HLOOKUP('Tipo Vehículo'!$E$10,DE!$C$1:$X$285,50,0)="","",HLOOKUP('Tipo Vehículo'!$E$10,DE!$C$1:$X$285,50,0)) -> 0
C17: Seguro de accidentes del conductor (€) | J17: =IF(HLOOKUP('Tipo Vehículo'!$E$10,DE!$C$1:$X$285,51,0)="","",HLOOKUP('Tipo Vehículo'!$E$10,DE!$C$1:$X$285,51,0)) -> 0
C19: Defensa y reclamación de daños (€) | J19: =IF(HLOOKUP('Tipo Vehículo'!$E$10,DE!$C$1:$X$285,52,0)="","",HLOOKUP('Tipo Vehículo'!$E$10,DE!$C$1:$X$285,52,0)) -> 0
C21: Seguro de incendios (€) | J21: =IF(HLOOKUP('Tipo Vehículo'!$E$10,DE!$C$1:$X$285,53,0)="","",HLOOKUP('Tipo Vehículo'!$E$10,DE!$C$1:$X$285,53,0)) -> 0
C23: Otros seguros (€) | J23: =IF(HLOOKUP('Tipo Vehículo'!$E$10,DE!$C$1:$X$285,54,0)="","",HLOOKUP('Tipo Vehículo'!$E$10,DE!$C$1:$X$285,54,0)) -> 0
C25: TOTAL SEGUROS (€) | J25: =IF(HLOOKUP('Tipo Vehículo'!$E$10,DE!$C$1:$X$285,55,0)="","",HLOOKUP('Tipo Vehículo'!$E$10,DE!$C$1:$X$285,55,0)) -> 3059.46
C27: COSTE TOTAL ANUAL DE LOS SEGUROS (€) | H27: =IFERROR(H11+H13+H15+H17+H19+H21+H23+H25,0) -> 0 | J27: =IF(HLOOKUP('Tipo Vehículo'!$E$10,DE!$C$1:$X$285,56,0)="","",HLOOKUP('Tipo Vehículo'!$E$10,DE!$C$1:$X$285,56,0)) -> 3059.46
C29: Costes fiscales | J29: Datos estadísticos | K29: =DE!$AJ$2 -> 19/06/2025
C31: Visados (€) | J31: =IF(HLOOKUP('Tipo Vehículo'!$E$10,DE!$C$1:$X$285,57,0)="","",HLOOKUP('Tipo Vehículo'!$E$10,DE!$C$1:$X$285,57,0)) -> 0
C33: Inspección técnica de vehículos (I.T.V.) (€) | J33: =IF(HLOOKUP('Tipo Vehículo'!$E$10,DE!$C$1:$X$285,58,0)="","",HLOOKUP('Tipo Vehículo'!$E$10,DE!$C$1:$X$285,58,0)) -> 0
C35: Impuesto de actividades económicas (I.A.E.) repercutible a este vehículo (€) | J35: =IF(HLOOKUP('Tipo Vehículo'!$E$10,DE!$C$1:$X$285,59,0)="","",HLOOKUP('Tipo Vehículo'!$E$10,DE!$C$1:$X$285,59,0)) -> 0
C37: Impuesto de Vehículos de Tracción Mecánica (I.T.V.M.) (€) | J37: =IF(HLOOKUP('Tipo Vehículo'!$E$10,DE!$C$1:$X$285,60,0)="","",HLOOKUP('Tipo Vehículo'!$E$10,DE!$C$1:$X$285,60,0)) -> 0
C39: Revisión tacógrafo (€) | J39: =IF(HLOOKUP('Tipo Vehículo'!$E$10,DE!$C$1:$X$285,61,0)="","",HLOOKUP('Tipo Vehículo'!$E$10,DE!$C$1:$X$285,61,0)) -> 0
C41: Otros costes fiscales (€) | J41: =IF(HLOOKUP('Tipo Vehículo'!$E$10,DE!$C$1:$X$285,62,0)="","",HLOOKUP('Tipo Vehículo'!$E$10,DE!$C$1:$X$285,62,0)) -> 0
C43: TOTAL COSTES FISCALES (€) | J43: =IF(HLOOKUP('Tipo Vehículo'!$E$10,DE!$C$1:$X$285,63,0)="","",HLOOKUP('Tipo Vehículo'!$E$10,DE!$C$1:$X$285,63,0)) -> 1194.3
C45: COSTE FISCAL TOTAL ANUAL (€) | H45: =IFERROR(H31+H33+H35+H37+H39+H41+H43,0) -> 0 | J45: =IF(HLOOKUP('Tipo Vehículo'!$E$10,DE!$C$1:$X$285,64,0)="","",HLOOKUP('Tipo Vehículo'!$E$10,DE!$C$1:$X$285,64,0)) -> 1194.3
C47: SEGUROS Y COSTES FISCALES (€) | H47: =IFERROR(H27+H45,0) -> 0 | J47: =IF(HLOOKUP('Tipo Vehículo'!$E$10,DE!$C$1:$X$285,65,0)="","",HLOOKUP('Tipo Vehículo'!$E$10,DE!$C$1:$X$285,65,0)) -> 4253.76

Sheet Costes Variables
C6: 5. Costes variables
C9: Carburante | L9: Datos estadísticos | M9: =DE!$AJ$2 -> 19/06/2025
C11: Precio del carburante, con IVA (€/litro) | L11: =IF(HLOOKUP('Tipo Vehículo'!$E$10,DE!$C$1:$X$285,66,0)="","",HLOOKUP('Tipo Vehículo'!$E$10,DE!$C$1:$X$285,66,0)) -> 1.234
C13: Descuento (€/litro) | L13: =IF(HLOOKUP('Tipo Vehículo'!$E$10,DE!$C$1:$X$285,67,0)="","",HLOOKUP('Tipo Vehículo'!$E$10,DE!$C$1:$X$285,67,0)) -> 0.116
C15: IVA aplicado al carburante (€/litro) | I15: % | J15: =IFERROR(ROUND((H15/100)*(J11-J13)/(1+H15/100),4),0) -> 0 | K15: =IF(HLOOKUP(CONCATENATE('Tipo Vehículo'!$E$10,"A"),DE!$C$1:$X$301,68,0)="","",HLOOKUP(CONCATENATE('Tipo Vehículo'!$E$10,"A"),DE!$C$1:$X$301,68,0)) -> 21 | L15: =IF(HLOOKUP('Tipo Vehículo'!$E$10,DE!$C$1:$X$285,68,0)="","",HLOOKUP('Tipo Vehículo'!$E$10,DE!$C$1:$X$285,68,0)) -> 0.194
C17: Precio carburante sin IVA (€/litro) | J17: =IFERROR(ROUND((J11-J13)/(1+H15/100),4),0) -> 0 | L17: =IF(HLOOKUP('Tipo Vehículo'!$E$10,DE!$C$1:$X$285,69,0)="","",HLOOKUP('Tipo Vehículo'!$E$10,DE!$C$1:$X$285,69,0)) -> 0.924
C19: GASTO TOTAL ANUAL EN CARBURANTE, SIN IVA (€) | J19: =IFERROR(ROUND(('Características Vehículo'!J23/100)*'Características Vehículo'!J27*'Costes Variables'!J17,0),0) -> 0 | L19: =IF(HLOOKUP('Tipo Vehículo'!$E$10,DE!$C$1:$X$285,70,0)="","",HLOOKUP('Tipo Vehículo'!$E$10,DE!$C$1:$X$285,70,0)) -> 20790
C21: Coste anual por consumo de disolución de urea | L21: Datos estadísticos | M21: =DE!$AJ$2 -> 19/06/2025
C23: GASTO TOTAL ANUAL POR CONSUMO DE DISOLUCION DE UREA | L23: =IF(HLOOKUP('Tipo Vehículo'!$E$10,DE!$C$1:$X$285,89,0)="","",HLOOKUP('Tipo Vehículo'!$E$10,DE!$C$1:$X$285,89,0)) -> 791.37
C25: Coste anual por disolución de urea por kilómetro(€/km, sin IVA) | J25: =IFERROR(J23/'Características Vehículo'!J23,0) -> 0 | L25: =IFERROR(L23/'Características Vehículo'!L23,0) -> 0.0105516
C27: Coste anual de neumáticos | L27: Datos estadísticos | M27: =DE!$AJ$2 -> 19/06/2025
C29: Número de neumáticos direccionables | L29: =IF(HLOOKUP('Tipo Vehículo'!$E$10,DE!$C$1:$X$285,71,0)="","",HLOOKUP('Tipo Vehículo'!$E$10,DE!$C$1:$X$285,71,0)) -> 4
C31: Número de neumáticos motrices | L31: =IF(HLOOKUP('Tipo Vehículo'!$E$10,DE!$C$1:$X$285,72,0)="","",HLOOKUP('Tipo Vehículo'!$E$10,DE!$C$1:$X$285,72,0)) -> 4
C33: Número de neumáticos arrastre | L33: =IF(HLOOKUP('Tipo Vehículo'!$E$10,DE!$C$1:$X$285,73,0)="","",HLOOKUP('Tipo Vehículo'!$E$10,DE!$C$1:$X$285,73,0)) -> 0
C35: Precio sin IVA de un neumático direccionable (€) | L35: =IF(HLOOKUP('Tipo Vehículo'!$E$10,DE!$C$1:$X$285,74,0)="","",HLOOKUP('Tipo Vehículo'!$E$10,DE!$C$1:$X$285,74,0)) -> 712.02
C37: Precio sin IVA de un neumático motriz (€) | L37: =IF(HLOOKUP('Tipo Vehículo'!$E$10,DE!$C$1:$X$285,75,0)="","",HLOOKUP('Tipo Vehículo'!$E$10,DE!$C$1:$X$285,75,0)) -> 712.02
C39: Precio sin IVA de un neumático arrastre (€) | L39: =IF(HLOOKUP('Tipo Vehículo'!$E$10,DE!$C$1:$X$285,76,0)="","",HLOOKUP('Tipo Vehículo'!$E$10,DE!$C$1:$X$285,76,0)) -> 712.02
C41: Duración media de un neumático direccionable (km) | L41: =IF(HLOOKUP('Tipo Vehículo'!$E$10,DE!$C$1:$X$285,77,0)="","",HLOOKUP('Tipo Vehículo'!$E$10,DE!$C$1:$X$285,77,0)) -> 70000
C43: Duración media de un neumático motriz (km) | L43: =IF(HLOOKUP('Tipo Vehículo'!$E$10,DE!$C$1:$X$285,78,0)="","",HLOOKUP('Tipo Vehículo'!$E$10,DE!$C$1:$X$285,78,0)) -> 70000
C45: Duración media de un neumático arrastre (km) | L45: =IF(HLOOKUP('Tipo Vehículo'!$E$10,DE!$C$1:$X$285,79,0)="","",HLOOKUP('Tipo Vehículo'!$E$10,DE!$C$1:$X$285,79,0)) -> 70000
C47: GASTO TOTAL ANUAL EN NEUMATICOS, SIN IVA (€) | J47: =IFERROR(ROUND((J29*J35*'Características Vehículo'!J23/'Costes Variables'!J41)+(J31*J37*'Características Vehículo'!J23/'Costes Variables'!J43)+(J33*J39*'Características Vehículo'!J23/'Costes Variables'!J45),0),0) -> 0 | L47: =IF(HLOOKUP('Tipo Vehículo'!$E$10,DE!$C$1:$X$285,80,0)="","",HLOOKUP('Tipo Vehículo'!$E$10,DE!$C$1:$X$285,80,0)) -> 6103
C49: Gastos de mantenimiento y reparaciones | L49: Datos estadísticos | M49: =DE!$AJ$2 -> 19/06/2025
C51: Coste de mantenimento y reparaciones por km, sin IVA (€/km) | L51: =IF(HLOOKUP('Tipo Vehículo'!$E$10,DE!$C$1:$X$285,81,0)="","",HLOOKUP('Tipo Vehículo'!$E$10,DE!$C$1:$X$285,81,0)) -> 0.1667
C53: GASTO ANUAL EN MANTENIMIENTO Y REPARACIONES, SIN IVA (€) | J53: =IFERROR(ROUND('Características Vehículo'!J23*'Costes Variables'!J51,2),0) -> 0 | L53: =IF(HLOOKUP('Tipo Vehículo'!$E$10,DE!$C$1:$X$285,82,0)="","",HLOOKUP('Tipo Vehículo'!$E$10,DE!$C$1:$X$285,82,0)) -> 12502.5
C55: Peajes | L55: Datos estadísticos | M55: =DE!$AJ$2 -> 19/06/2025
C57: GASTO ANUAL EN PEAJES, SIN IVA (€) | L57: =IF(HLOOKUP('Tipo Vehículo'!$E$10,DE!$C$1:$X$285,83,0)="","",HLOOKUP('Tipo Vehículo'!$E$10,DE!$C$1:$X$285,83,0)) -> 0
C59: COSTES VARIABLES (€) | J59: =IFERROR(ROUND('Costes Variables'!J19+'Costes Variables'!J47+'Costes Variables'!J53+'Costes Variables'!J57+J23,2),0) -> 0 | L59: =IF(HLOOKUP('Tipo Vehículo'!$E$10,DE!$C$1:$X$285,84,0)="","",HLOOKUP('Tipo Vehículo'!$E$10,DE!$C$1:$X$285,84,0)) -> 40186.87
C61: COSTES DIRECTOS (€) | J61: =IFERROR(ROUND('Costes Adquisición'!J63+'Costes Personal'!H39+'Seguros y Costes Fiscales'!H47+'Costes Variables'!J59,2),0) -> 0 | L61: =IF(HLOOKUP('Tipo Vehículo'!$E$10,DE!$C$1:$X$285,85,0)="","",HLOOKUP('Tipo Vehículo'!$E$10,DE!$C$1:$X$285,85,0)) -> 109206.58

Sheet Costes Indirectos
C6: 6. Costes indirectos
C9: Costes Indirectos | J9: Datos estadísticos | K9: =DE!$AJ$2 -> 19/06/2025
C11: % Costes variables de gestión, administración y comercialización | I11: % | J11: =ROUND(('Costes Adquisición'!J63+'Costes Personal'!H39+'Seguros y Costes Fiscales'!H47+'Costes Variables'!J59)*(H11/100),0) -> 0 | K11: =IF(HLOOKUP(CONCATENATE('Tipo Vehículo'!$E$10,"A"),DE!$C$1:$X$301,86,0)="","",HLOOKUP(CONCATENATE('Tipo Vehículo'!$E$10,"A"),DE!$C$1:$X$301,86,0)) -> 12.5 | L11: =IF(HLOOKUP('Tipo Vehículo'!$E$10,DE!$C$1:$X$285,86,0)="","",HLOOKUP('Tipo Vehículo'!$E$10,DE!$C$1:$X$285,86,0)) -> 13651
C13: COSTES INDIRECTOS (€) | H13: =J11 -> 0 | J13: =IF(HLOOKUP('Tipo Vehículo'!$E$10,DE!$C$1:$X$285,87,0)="","",HLOOKUP('Tipo Vehículo'!$E$10,DE!$C$1:$X$285,87,0)) -> 13651
C15: COSTES TOTALES (€) | H15: =IFERROR(ROUND(H13+'Costes Variables'!J61,0),0) -> 0 | J15: =IF(HLOOKUP('Tipo Vehículo'!$E$10,DE!$C$1:$X$285,88,0)="","",HLOOKUP('Tipo Vehículo'!$E$10,DE!$C$1:$X$285,88,0)) -> 122858

Sheet Resultados
C6: Resultados
C9: RESULTADOS COSTES ANUALES | E9: Usuario | H9: Datos estadísticos | I9: =DE!$AJ$2 -> 19/06/2025
E10: Euros | F10: % | H10: Euros | I10: %
C11: COSTES TOTALES | E11: =ROUND(E12+E21,0) -> 0 | F11: 100 | H11: =ROUND(H12+H21,0) -> 122857 | I11: 100
C12: COSTES POR TIEMPO | E12: =ROUND(IFERROR(SUM(E13:E20),0),0) -> 0 | F12: =IFERROR(E12*F11/E11,0) -> 0 | H12: =ROUND(IFERROR(SUM(H13:H20),0),0) -> 82670 | I12: =IFERROR(H12*I11/H11,0) -> 67.28961313
C13: Leasing | D13: A | E13: =ROUND('Costes Adquisición'!J13+'Costes Adquisición'!J31+'Costes Adquisición'!J49,0) -> 0 | F13: =IFERROR(E13*F$11/E$11,0) -> 0 | G13: A | H13: =ROUND('Costes Adquisición'!L13+'Costes Adquisición'!L31+'Costes Adquisición'!L49,0) -> 0 | I13: =IFERROR(H13*I$11/H$11,0) -> 0 | K13: A | L13: =E13 -> 0 | M13: 0 | N13: A | O13: =H13 -> 0 | P13: 0
C14: Amortización | D14: B | E14: =ROUND('Costes Adquisición'!J23+'Costes Adquisición'!J41+'Costes Adquisición'!J59,0) -> 0 | F14: =IFERROR(E14*F$11/E$11,0) -> 0 | G14: B | H14: =ROUND('Costes Adquisición'!L23+'Costes Adquisición'!L41+'Costes Adquisición'!L59,0) -> 16754 | I14: 13.6369926 | K14: B | L14: 0 | M14: 0 | N14: B | O14: 16754 | P14: 13.6369926
C15: Gastos financieros | D15: C | E15: =ROUND('Costes Adquisición'!J25+'Costes Adquisición'!J43+'Costes Adquisición'!J61,0) -> 0 | F15: 0 | G15: C | H15: =ROUND('Costes Adquisición'!L25+'Costes Adquisición'!L43+'Costes Adquisición'!L61,0) -> 6716 | I15: 5.466517984 | K15: C | L15: 0 | M15: 0 | N15: C | O15: 6716 | P15: 5.466517984
C16: Coste total anual del conductor | D16: D | E16: =ROUND('Costes Personal'!H11,0) -> 0 | F16: 0 | G16: D | H16: =ROUND('Costes Personal'!J11,0) -> 34932 | I16: 28.43305632 | K16: D | L16: 0 | M16: 0 | N16: D | O16: 34932 | P16: 28.43305632
C17: Dietas y otros complementos retributivos del personal de a bordo | D17: E | E17: =ROUND('Costes Personal'!H13+'Costes Personal'!H25+'Costes Personal'!H37,0) -> 0 | F17: 0 | G17: E | H17: =ROUND('Costes Personal'!J13+'Costes Personal'!J25+'Costes Personal'!J37,0) -> 6364 | I17: 5.180006023 | K17: E | L17: 0 | M17: 0 | N17: E | O17: 6364 | P17: 5.180006023
C18: Seguros | D18: F | E18: =ROUND('Seguros y Costes Fiscales'!H27,0) -> 0 | F18: 0 | G18: F | H18: =ROUND('Seguros y Costes Fiscales'!J27,0) -> 3059 | I18: 2.489886616 | K18: F | L18: 0 | M18: 0 | N18: F | O18: 3059 | P18: 2.489886616
C19: Costes fiscales | D19: G | E19: =ROUND('Seguros y Costes Fiscales'!H45,0) -> 0 | F19: 0 | G19: G | H19: =ROUND('Seguros y Costes Fiscales'!J45,0) -> 1194 | I19: 0.9718615952 | K19: G | L19: 0 | M19: 0 | N19: G | O19: 1194 | P19: 0.9718615952
C20: Gestión y comercialización | D20: H | E20: =ROUND('Costes Indirectos'!H13,0) -> 0 | F20: 0 | G20: H | H20: =ROUND('Costes Indirectos'!J13,0) -> 13651 | I20: 11.11129199 | K20: H | L20: 0 | M20: 0 | N20: H | O20: 13651 | P20: 11.11129199
C21: COSTES POR DISTANCIA | E21: =ROUND(IFERROR(SUM(E22:E25),0),0) -> 0 | F21: =IFERROR(E21*F20/E20,0) -> 0 | H21: =ROUND(IFERROR(SUM(H22:H25),0),0) -> 40187 | I21: =IFERROR(H21*I20/H20,0) -> 32.71038687 | K21: I | L21: =E22 -> 0 | M21: 0 | N21: I | O21: =H22 -> 21581 | P21: 17.56595066
C22: Combustible | D22: I | E22: =ROUND('Costes Variables'!J19+'Costes Variables'!J23,0) -> 0 | F22: =IFERROR(E22*F$11/E$11,0) -> 0 | G22: I | H22: =ROUND('Costes Variables'!L19+'Costes Variables'!L23,0) -> 21581 | I22: =IFERROR(H22*I$11/H$11,0) -> 17.56595066 | K22: J | L22: 0 | M22: 0 | N22: J | O22: 6103 | P22: 4.967563916
C23: Neumáticos | D23: J | E23: =ROUND('Costes Variables'!J47,0) -> 0 | F23: =IFERROR(E23*F$11/E$11,0) -> 0 | G23: J | H23: =ROUND('Costes Variables'!L47,0) -> 6103 | I23: =IFERROR(H23*I$11/H$11,0) -> 4.967563916 | K23: K | L23: 0 | M23: 0 | N23: K | O23: 12503 | P23: 10.1768723
C24: Mantenimiento y reparaciones | D24: K | E24: =ROUND('Costes Variables'!J53,0) -> 0 | F24: =IFERROR(E24*F$11/E$11,0) -> 0 | G24: K | H24: =ROUND('Costes Variables'!L53,0) -> 12503 | I24: =IFERROR(H24*I$11/H$11,0) -> 10.1768723 | K24: L | L24: 0 | M24: 0 | N24: L | O24: 0 | P24: 0
C25: Peajes | D25: L | E25: =ROUND('Costes Variables'!J57,0) -> 0 | F25: =IFERROR(E25*F$11/E$11,0) -> 0 | G25: L | H25: =ROUND('Costes Variables'!L57,0) -> 0 | I25: =IFERROR(H25*I$11/H$11,0) -> 0
C41: ESTRUCTURA DE COSTES ANUALES | E41: Usuario | H41: Datos estadísticos | I41: =DE!$AJ$2 -> 19/06/2025
E42: Euros | F42: % | H42: Euros | I42: %
C43: Amortización y gastos financieros y leasing | D43: A | E43: =ROUND(E13+E14+E15,0) -> 0 | F43: =IFERROR(E43*$F$48/$E$48,0) -> 0 | G43: A | H43: =ROUND(H13+H14+H15,0) -> 23470 | I43: =IFERROR(H43*$I$48/$H$48,0) -> 19.10351059
C44: Personal | D44: B | E44: =ROUND(E16+E17,0) -> 0 | F44: =IFERROR(E44*$F$48/$E$48,0) -> 0 | G44: B | H44: =ROUND(H16+H17,0) -> 41296 | I44: =IFERROR(H44*$I$48/$H$48,0) -> 33.61306234
C45: Seguros, costes fiscales, gestión y comercialización | D45: C | E45: =ROUND(E18+E19+E20,0) -> 0 | F45: =IFERROR(E45*$F$48/$E$48,0) -> 0 | G45: C | H45: =ROUND(H18+H19+H20,0) -> 17904 | I45: =IFERROR(H45*$I$48/$H$48,0) -> 14.5730402
C46: Carburante, neumáticos, reparaciones, mantenimiento y peajes | D46: D | E46: =ROUND(E22+E23+E24+E25,0) -> 0 | F46: =IFERROR(E46*$F$48/$E$48,0) -> 0 | G46: D | H46: =ROUND(H22+H23+H24+H25,0) -> 40187 | I46: =IFERROR(H46*$I$48/$H$48,0) -> 32.71038687
C48: COSTES TOTALES | E48: =ROUND(SUM(E43:E46),0) -> 0 | F48: 100 | H48: =ROUND(SUM(H43:H46),0) -> 122857 | I48: 100
C68: COSTES POR TIEMPO-COSTES POR DISTANCIA | E68: Usuario | H68: Datos estadísticos | I68: =DE!$AJ$2 -> 19/06/2025
E70: Euros | F70: % | H70: Euros | I70: %
C72: Costes por tiempo | D72: A | E72: =ROUND(E12,0) -> 0 | F72: =IFERROR(E72*$F$48/$E$48,0) -> 0 | G72: A | H72: =ROUND(H12,0) -> 82670 | I72: =IFERROR(H72*$I$48/$H$48,0) -> 67.28961313
C73: Costes por distancia | D73: B | E73: =ROUND(E21,0) -> 0 | F73: =IFERROR(E73*$F$48/$E$48,0) -> 0 | G73: B | H73: =ROUND(H21,0) -> 40187 | I73: =IFERROR(H73*$I$48/$H$48,0) -> 32.71038687
C75: COSTES TOTALES | E75: =ROUND(SUM(E72:E73),0) -> 0 | F75: 100 | H75: =ROUND(SUM(H72:H73),0) -> 122857 | I75: 100
C91: COSTES MEDIOS | E91: Usuario | H91: Datos estadísticos | I91: =DE!$AJ$2 -> 19/06/2025
C93: Coste total medio (por km) | E93: =IFERROR('Costes Indirectos'!H15/'Características Vehículo'!J23,0) -> 0 | H93: =IFERROR('Costes Indirectos'!J15/'Características Vehículo'!L23,0) -> 1.638106667
C94: Coste total medio (por hora) | E94: =IFERROR('Costes Indirectos'!H15/'Características Vehículo'!J29,0) -> 0 | H94: =IFERROR('Costes Indirectos'!J15/'Características Vehículo'!L29,0) -> 68.25444444
C95: Coste total medio (por km. facturado) | E95: =IFERROR('Costes Indirectos'!H15/'Características Vehículo'!J25,0) -> 0 | H95: =IFERROR('Costes Indirectos'!J15/'Características Vehículo'!L25,0) -> 1.724322807
C96: Coste total medio (por hora facturada) | E96: =IFERROR('Costes Indirectos'!H15/'Características Vehículo'!J31,0) -> 0 | H96: =IFERROR('Costes Indirectos'!J15/'Características Vehículo'!L31,0) -> 75.004884
C97: Coste por distancia media (por km) | E97: =IFERROR(E73/'Características Vehículo'!J23,0) -> 0 | H97: =IFERROR(H73/'Características Vehículo'!L23,0) -> 0.5358266667
C98: Coste por distancia media (por km. facturado) | E98: =IFERROR(E73/'Características Vehículo'!J25,0) -> 0 | H98: =IFERROR(H73/'Características Vehículo'!L25,0) -> 0.5640280702
C99: Coste por tiempo medio (por hora) | E99: =IFERROR(E72/'Características Vehículo'!J29,0) -> 0 | H99: =IFERROR(H72/'Características Vehículo'!L29,0) -> 45.92777778
C100: Coste por tiempo medio (por hora facturada) | E100: =IFERROR(E72/'Características Vehículo'!J31,0) -> 0 | H100: =IFERROR(H72/'Características Vehículo'!L31,0) -> 50.47008547
C101: Costes totales por persona-kilómetro | E101: =IFERROR('Costes Indirectos'!H15/'Características Vehículo'!J35/'Características Vehículo'!J37,0) -> 0 | H101: =IFERROR('Costes Indirectos'!J15/'Características Vehículo'!L35/'Características Vehículo'!L37,0) -> 0.1654653199

Sheet Coste Servicio
C6: Coste de un servicio
C9: Coste de un servicio
C11: Denominación del servicio
C13: Kilómetros recorridos en este servicio (km)
C15: Kilómetros con personas (km)
C17: Consumo medio por kilómetro en este servicio (litros / 100 km)
C19: Número medio de plazas de personas ocupadas en este servicio
C21: Horas empleadas en este servicio (h)
C23: Peajes (€)
C25: Coste por distancia de este servicio (€) | H25: =IFERROR(ROUND((H13*H17/100*'Costes Variables'!J17)+(H13*('Costes Variables'!J47+'Costes Variables'!J53)/'Características Vehículo'!J23)+H23,2),0) -> 0
C27: Coste por tiempo de este servicio (€) | H27: =IFERROR(ROUND(H21*('Costes Adquisición'!J63+'Costes Personal'!H39+'Seguros y Costes Fiscales'!H47+'Costes Indirectos'!H13)/'Características Vehículo'!J29,2),0) -> 0
C29: Otros costes asociados a este servicio (€)
C31: Coste total de este servicio (€) | H31: =IFERROR(ROUND(H25+H27+H29,2),0) -> 0
C33: Coste por persona-kilómetro de este servicio (€) | H33: =IFERROR(ROUND(H31/H13/H19,3),0) -> 0
